Cogmind - Beta 12 @@@ ROGUE MODE // 2023.06.09 @ 12:04:15 Player: Mr Goldstein Result: Destroyed by S-10 Pest with Light Assault Rifle Performance ------------- Evolutions (0) 0 Regions Visited (1) 200 Robots Destroyed (11) 55 Value Destroyed (129) 129 Prototype IDs (0) 0 Alien Tech Used (0) 0 Bonus (0) 0 TOTAL SCORE: 384 Bonus ------- None Cogmind --------- Core Integrity 0/250 Matter 290/300 Energy 78/100 System Corruption 0% Temperature Critical (583) Movement Rolling (95) Ox1 Location -10/Materials Parts ------- > --- POWER (1) -------- (None) > --- PROPULSION (2) --- Wheel > --- UTILITY (2) ------ Medium Storage Unit > --- WEAPON (2) ------- Beam Rifle Beam Cannon > --- INVENTORY (10) --- Light Ion Engine Improved Ion Engine Beam Rifle Beam Rifle Beam Cannon Beam Cannon Beam Cannon Light Assault Rifle Light Assault Rifle Peak State ------------ > --- POWER ------------ Ion Engine > --- PROPULSION ------- Wheel Wheel > --- UTILITY ---------- Small Storage Unit Medium Storage Unit > --- WEAPON ----------- Beam Rifle Beam Rifle > --- INVENTORY -------- Light Ion Engine Improved Ion Engine Beam Rifle Beam Rifle Light Assault Rifle Light Assault Rifle [Rating: 9] Favorites ----------- Power Ion Engine Engine Ion Engine Propulsion Wheel Wheel Wheel Utility Medium Storage Unit Storage Medium Storage Unit Weapon Beam Rifle Energy Gun Beam Rifle Energy Cannon Beam Cannon Ballistic Gun Light Assault Rifle Build | -11 -10 ------- Run | Jun Mat Slots Evolved . | . . Power . | . . Propulsion . | . . Utility . | . . Weapon . | . . Parts Attached 10 | 6 4 Power 1 | 1 . Engine 1 | 1 . Core . | . . Reactor . | . . Propulsion 2 | 2 . Treads . | . . Leg . | . . Wheel 2 | 2 . Hover . | . . Flight . | . . Utility 2 | 1 1 Device . | . . Storage 2 | 1 1 Processor . | . . Hackware . | . . Protection . | . . Artifact . | . . Weapon 5 | 2 3 Energy Gun 2 | . 2 Energy Cannon 1 | . 1 Ballistic Gun 2 | 2 . Ballistic Cannon . | . . Launcher . | . . Special Weapon . | . . Impact Weapon . | . . Slashing Weapon . | . . Piercing Weapon . | . . Special Melee Weapon . | . . Unidentified Prototypes . | . . Parts Lost 3 | . 3 Power 1 | . 1 Propulsion 1 | . 1 Utility . | . . Weapon 1 | . 1 Highest Loss Streak 3 | . 3 To Critical Strikes . | . . Average Slot Usage (%) 85 | . 85 Engine 14 | . 14 Wheel 28 | . 28 Storage 14 | . 14 Energy Gun 24 | . 24 Ballistic Gun 3 | . 3 Naked Turns . | . . Heaviest Build 21 | 12 21 Greatest Support 20 | 20 20 Greatest Overweight (x) 1 | . 1 Average Overweight (x) . | . . Largest Inventory Capacity 10 | 8 10 Average Capacity 8 | 6 9 Most Carried 10 | 1 10 Average Carried 5 | . 8 Final Capacity 10 | 8 10 Final Carried 9 | 1 9 Class Distribution -------------------- 100% | Mutant Dominant Class ---------------- Mutant | -10/Materials Resources | -11 -10 ----------- Run | Jun Mat Matter Collected 290 | 260 30 Remotely . | . . Salvage Created 388 | . 388 Parts 18 | . 18 Haulers Intercepted 2 | . 2 Recyclers Shooed . | . . Parts Field Recycled . | . . Retrieved Matter . | . . Parts Self-Destructed . | . . Prevented . | . . Kills | -11 -10 ------- Run | Jun Mat Combat Hostiles Destroyed 7 | . 7 Guns 7 | . 7 Classes Destroyed 5 | . 5 Worker 1 | . 1 Hauler 2 | . 2 Recycler 1 | . 1 Swarmer 5 | . 5 Grunt 2 | . 2 Best Kill Streak 9 | . 9 Combat Bots Only 5 | . 5 Max Kills in Single Turn 1 | . 1 Gunslinging . | . . Exploded . | . . Melee . | . . Uniques/NPCs Destroyed . | . . Combat | -11 -10 -------- Run | Jun Mat Damage Taken 537 | . 537 Core 251 | . 251 Absorbed by Shields . | . . Core Remaining (%) 100 | 100 . Volleys Fired 27 | . 27 Largest 2 | . 2 Hottest 112 | . 112 Shots Fired 53 | . 53 Gun 52 | . 52 Cannon 1 | . 1 Launcher . | . . Special . | . . Kinetic . | . . Thermal 53 | . 53 Explosive . | . . Electromagnetic . | . . Robot Hit Streak 11 | . 11 Robot Miss Streak 9 | . 9 Penetration Max . | . . Secondary Targets 1 | . 1 Max Gunslinging Chain 1 | . 1 Shots Hit Robots 22 | . 22 Core Hits 12 | . 12 Critical Kills . | . . Critical Parts Destroyed . | . . Critical Strikes 1 | . 1 Burn 1 | . 1 Melee Attacks . | . . Impact . | . . Slashing . | . . Piercing . | . . Sneak Attacks . | . . Combat Hostiles . | . . Follow-up Attacks . | . . Damage Inflicted 380 | . 380 Guns 380 | . 380 Cannons . | . . Explosions . | . . Melee . | . . Ramming . | . . Kinetic . | . . Thermal 380 | . 380 Explosive . | . . Electromagnetic . | . . Impact . | . . Slashing . | . . Piercing . | . . Highest Corruption . | . . Average Corruption . | . . Corruption Purged . | . . Corruption Blocked . | . . Overload Shots . | . . Overflow Damage . | . . Projectiles . | . . Explosions . | . . Melee . | . . Knockbacks . | . . Impact . | . . Kinetic . | . . Secondary . | . . Self-Inflicted Damage . | . . Shots . | . . Rammed . | . . Targets Rammed . | . . Kicked . | . . Crushed . | . . Highest Temperature 603 | . 603 Average Temperature 184 | . 184 Received Heat Transfer 30 | . 30 Effects 15 | . 15 Shutdowns 2 | . 2 Energy Bleed 2 | . 2 Interference 1 | . 1 Short Circuit 1 | . 1 Damage (minor) 1 | . 1 Damage (major) 5 | . 5 Damage (core) 3 | . 3 Siege Activations . | . . Robots Corrupted . | . . Combat Hostiles . | . . Parts Fried . | . . Impact Corruptions . | . . Robots Melted . | . . Combat Hostiles . | . . Parts Melted 3 | . 3 Heat Transferred 1036 | . 1036 Parts Sabotaged . | . . Parts Stolen . | . . Parts Stripped . | . . Power Chain Reactions . | . . Missiles Intercepted . | . . Alert | -11 -10 ------- Run | Jun Mat Peak Influence 181 | . 181 Initial . | . . Average 42 | . 60 Maximum Alert Level . | . . Low Security (%) 100 | 100 100 Level 1 . | . . Level 2 . | . . Level 3 . | . . Level 4 . | . . Level 5 . | . . High Security . | . . Max Security . | . . Squads Dispatched . | . . Investigation . | . . Extermination . | . . Reinforcement . | . . Assault . | . . Garrison . | . . Intercept . | . . Searches Triggered . | . . Construction Impeded . | . . Haulers Reinforced . | . . Active Scanning Responses . | . . Cargo Convoy Interrupts . | . . Stealth | -11 -10 --------- Run | Jun Mat Distress Signals . | . . Communications Jammed . | . . Distress Signals . | . . Times Spotted 11 | . 11 Peak Tracking Total 6 | . 6 Tactical Retreats . | . . Traps | -11 -10 ------- Run | Jun Mat Traps Triggered . | . . Indirectly . | . . Trap Hack Attempts . | . . Triggered . | . . Disarmed . | . . Reprogrammed . | . . Reused . | . . Traps Extracted . | . . Installed . | . . Triggered . | . . Machines | -11 -10 ---------- Run | Jun Mat Machines Disabled . | . . Max in Single Turn . | . . Machines Repaired . | . . Machines Sabotaged . | . . Overloaded Fab Kills . | . . Hacking | -11 -10 --------- Run | Jun Mat Machines Accessed . | . . Terminals . | . . Fabricators . | . . Repair Stations . | . . Recycling Units . | . . Scanalyzers . | . . Garrison Access . | . . Total Hacks . | . . Successful . | . . Failed . | . . Catastrophic . | . . Database Lockouts . | . . Manual . | . . Terminals . | . . Fabricators . | . . Repair Stations . | . . Recycling Units . | . . Scanalyzers . | . . Garrison Access . | . . Terminal Hacks . | . . Fabricator Hacks . | . . Repair Station Hacks . | . . Recycling Unit Hacks . | . . Scanalyzer . | . . Garrison Access Hacks . | . . Unauthorized Hacks . | . . Terminals . | . . Fabricators . | . . Repair Stations . | . . Recycling Units . | . . Scanalyzers . | . . Garrison Access . | . . Data Cores Recovered . | . . Used . | . . Hacking Detections . | . . Full Trace Events . | . . Feedback Events . | . . Feedback Blocked . | . . Robot Schematics Acquired . | . . Robots Built . | . . Authchips . | . . Time . | . . Total Robot Build Rating . | . . Part Schematics Acquired . | . . Parts Built . | . . Authchips . | . . Time . | . . Total Part Build Rating . | . . Parts Repaired . | . . Time . | . . Parts Recycled . | . . Recycled Matter . | . . Retrieved Matter . | . . Retrieved Components . | . . Parts Scanalyzed . | . . Part Schematics Acquired . | . . Parts Damaged . | . . Bothacking | -11 -10 ------------ Run | Jun Mat Used RIF Installer . | . . Robots Hacked . | . . Non-combat . | . . Combat . | . . Robot Hacks Applied . | . . Relay Couplers Released . | . . Fabnet Peak Effective % . | . . Robots Rewired . | . . Allies Hacked . | . . Hacks Repelled . | . . Allies | -11 -10 -------- Run | Jun Mat Total Allies . | . . Largest Group . | . . Highest-Rated Group . | . . Highest-Rated Ally . | . . Total Orders . | . . Ally Attacks . | . . Total Damage . | . . Kills . | . . Allies Corrupted . | . . Allies Melted . | . . Intel | -11 -10 ------- Run | Jun Mat Robot Analysis Total . | . . Derelict Logs Recovered . | . . Drone Launches . | . . Drone Recoveries . | . . Exploration | -11 -10 ------------- Run | Jun Mat Turns Passed 266 | 80 186 Spaces Moved 196 | 106 90 Core 49 | 49 . Treads . | . . Legs . | . . Wheels 147 | 57 90 Hover . | . . Flight . | . . Fastest Speed 50 | 50 80 Average Speed 76 | 66 88 Slowest Speed 95 | 80 95 Overloaded Moves . | . . Propulsion Burnouts . | . . Robots Hopped . | . . Cave-ins Triggered . | . . Exploration Rate (%) 12 | 4 21 Regions Visited 1 Branch Regions . Pre-discovered Areas . | . . Known Exits Taken . | . . Unknown Exits Taken 1 | 1 . Scrap Searched . | . . Spaces Dug . | . . Terrain Destroyed . | . . Melee . | . . Projectile . | . . AOE . | . . Terrain Rammed . | . . Walls Destroyed . | . . Machines Disabled . | . . Actions | -11 -10 --------- Run | Jun Mat Total 255 | 112 143 Wait 12 | . 12 Move 195 | 105 90 Hop . | . . Pick Up 10 | 1 9 Fast Attach 7 | 6 1 Attach 1 | . 1 Detach . | . . Swap 2 | . 2 Drop 1 | . 1 Fire 27 | . 27 Melee . | . . Ram . | . . Kick . | . . Crush . | . . Escape Stasis . | . . Rewire . | . . Trap . | . . Miscellaneous . | . . Route ------- -11/Junkyard -10/Materials History --------- Turn | Location | Event 5 | -11/Junkyard | Discovered new exit (range 15) 81 | -11/Junkyard | Entered Materials 259 | -10/Materials | Core integrity fell below 50% 263 | -10/Materials | Core integrity fell below 20% 267 | -10/Materials | Destroyed by S-10 Pest with Light Assault Rifle Last Messages --------------- 00252_ Wheel broken. 00252_ Overheating: Short circuit. 00253_ Overheating: Beam Rifle damaged (-12). 00255_ K-01 Serf collects debris. 00259_ Overheating: Core damaged (-30). 00259_ K-01 Serf collects debris. 00261_ Broken Wheel destroyed. 00262_ Overheating: Ion Engine damaged (-10). 00262_ K-01 Serf destroyed. 00263_ Overheating: Core damaged (-40). 00264_ Beam Rifle destroyed. 00265_ Power failure, Ion Engine shutdown. 00265_ Overheating: System interference. 00265_ Beam Rifle temporarily disabled. 00265_ Ion Engine destroyed. 00266_ Overheating: Core damaged (-42). 00267_ Overheating: Beam Cannon damaged (-68). 00267_ Overheating: Med. Storage Unit damaged (-95). 00267_ Overheating: Beam Rifle damaged (-7). 00267_ Overheating: Wheel damaged (-2). Map ----- +----------------------------------------------------+ | = # #?????????? | | ] *[+ #?????????? | | %]! *=# #?????????? | | #######+#####################%# #?????????? | | ????? ???????????########+# #?????????? | | ???# ?????????# % =%+ #?????????? | | ???# #????????# %= ##+#######?????????? | | ???# ]] #????????# #??????????????????? | | ???# ]] #????????# #??????????????????? | | ???# ]] #????????# #??????????????????? | | ???# #????????# #??????????????????? | | ???# #????????# #??????????????????? | | ???# #????????# #??????????????????? | | ???##########????????# #??#???????????????? | | ?????????????????????#######+### ##??????????????? | | ??????????????????????# #?"????????????? | | ??????????????????????# * # ?????????????? | | ??????????????????????# % +??????????????? | | ??????????????????????# %#### #??????????????? | | ??????????????????????# ##+###? #??????????????? | | ??????????????????????# # % ## #??????????????? | | ??????????????????????+?# [ + ? #??????????????? | | ????????????????????????# = #??? #??????????????? | | ????????????????????????#=%! #????#??????????????? | | ????????????????????????# su #???????????????????? | | ????????????????????????#@%= #???????????????????? | | ????????????????????????# = #???????????????????? | | ????????????????????????# #???????????????????? | | ????????????????????????#s% #???????????????????? | | ????????????????????????##+###???????????????????? | | ??????????????????????????% ?????????????????????? | | ??????????????????????????% ?????????????????????? | | ?????????????????????????? ????????????????????? | | ??????????????????????????+##????????????????????? | | ?????????????????????????? ?????????????????????? | | ??????????????????????????T ?????????????????????? | | ?????????????????????????? ?????????????????????? | | ???????????????????????????[?????????????????????? | | ??????????????????????????? ?????????????????????? | | ?????????????????????????????????????????????????? | | ?????????????????????????????????????????????????? | | ?????????????????????????????????????????????????? | | ?????????????????????????????????????????????????? | | ?????????????????????????????????????????????????? | | ?????????????????????????????????????????????????? | | ?????????????????????????????????????????????????? | | ?????????????????????????????????????????????????? | | ?????????????????????????????????????????????????? | | ?????????????????????????????????????????????????? | | ?????????????????????????????????????????????????? | +----------------------------------------------------+ Best States ------------- Heat Dissipation 25 Energy Generation 10 Energy Capacity 250 Matter Stores 300 Matter Capacity 300 Sight Range 16 Terrain Scan Density 10 Evasion (%) 50 Item Schematics ----------------- None Robot Schematics ------------------ None Fabricated ------------ Nothing Alien Tech Used ----------------- None Achievements -------------- None Challenges ------------ None Game ------ Seed GuidanceSurveybotActivator Manual? 0 Play Time 00:03:09 Cumulative 284.6 hours Start 2023.06.09 @ 12:01:25 End 2023.06.09 @ 12:04:15 Sessions 1 Manual Loads 0 Difficulty Rogue Special Mode None Game No. 837 Rogue 837 Adventurer 0 Explorer 0 Win Type - Total 17 Types 8/0/7/2/0/0/0/0/0 Lore% 90 Gallery% 87 Achievement% 79 Wizard Run 0 Options --------- ASCII 0 Keyboard 0 Movement Mouse Keybinds 0 Fullscreen 1 Font 16/SmallcapsGlow Map View 75x55 Tactical HUD 1 Map Filters NONE Filters NONE Steam 1 RUN: 7353a2ac-020d-43ff-a764-cf3e3b1ec073